bitfinex-derivatives/quotes_ETHF0:USTF0_20260312
["timestamp","ask_amount","ask_price","bid_price","bid_amount"]
[1773321137737,8.99,2066.3,2065.9,0.94927215]
[1773321138141,1.00460792,2066.2,2065.9,0.94927215]
[1773321138342,1.00460792,2066.2,2065.7,0.94927215]
[1773321139343,1.00460792,2066.2,2065.8,0.94927215]
[1773321141545,1.00460792,2066.2,2065.7,0.97515155]
[1773321141851,1.00460792,2066.2,2065.6,0.00590846]
[1773321142449,1.00460792,2066.2,2065.6,0.98106001]
[1773321150756,9.031,2066.3,2066.0,0.97515155]
[1773321150954,9.032,2066.4,2066.0,0.97515155]
[1773321151453,0.96327596,2066.6,2066.2,0.97515155]
[1773321151753,9.99727596,2066.6,2066.2,0.97515155]
[1773321151953,0.96327596,2066.5,2066.2,0.97515155]
[1773321154855,9.99727596,2066.6,2066.2,0.97515155]
[1773321156257,0.96327596,2066.5,2066.2,0.97515155]
[1773321156959,10.01527596,2066.5,2066.2,0.97515155]
[1773321157161,0.96327596,2066.9,2066.2,0.97515155]
[1773321157460,10.01727596,2066.8,2066.4,0.97515155]
[1773321157852,0.96327596,2066.7,2066.4,0.97515155]
[1773321158356,0.96327596,2066.7,2066.2,0.97515155]
[1773321161260,9.065,2066.8,2066.2,0.97515155]
[1773321161464,10.02827596,2066.8,2066.2,0.97515155]
[1773321162564,0.96327596,2066.7,2066.2,0.97515155]
[1773321162964,10.03827596,2066.8,2066.3,0.97515155]
[1773321163164,0.96327596,2066.8,2066.4,1.30152795]
[1773321163361,10.03927596,2066.8,2066.5,0.97515155]
[1773321163760,0.96327596,2066.8,2066.5,0.97515155]
[1773321163966,0.96327596,2066.8,2066.4,0.96323921]
[1773321166963,0.96327596,2066.8,2066.2,0.96323921]
[1773321170467,0.96327596,2066.8,2065.9,0.99033202]
[1773321170667,1.04993608,2066.6,2066.0,0.99033202]
[1773321170865,1.04993608,2066.6,2066.2,0.99033202]
[1773321171571,1.04993608,2066.6,2066.0,0.99033202]
[1773321180875,1.04993608,2066.5,2066.0,0.99033202]
[1773321181274,1.04993608,2066.5,2065.8,0.23592743]
[1773321181275,1.04993608,2066.3,2065.8,0.99033202]
[1773321181474,1.04993608,2066.3,2065.6,0.99624048]
[1773321182179,1.04993608,2066.1,2065.6,0.99624048]
[1773321183476,1.04993608,2066.1,2065.6,0.00590846]
[1773321185578,1.04993608,2065.9,2065.1,0.99033202]
[1773321185978,1.04993608,2065.8,2065.1,0.99033202]
[1773321186281,1.04993608,2065.6,2065.1,0.99033202]
[1773321186576,1.05446022,2065.6,2065.1,0.9956743]
[1773321186973,1.05446022,2065.6,2065.1,0.00534228]
[1773321187580,1.05446022,2065.6,2064.9,0.99033202]
[1773321188778,1.05446022,2065.6,2064.9,0.9956478]
[1773321188979,1.04993608,2065.5,2064.9,0.00531578]
[1773321189779,1.04993608,2065.3,2064.5,0.99033202]
[1773321190184,1.04993608,2065.4,2064.6,0.99033202]
[1773321190385,10.20446022,2065.6,2064.8,0.99033202]
[1773321190584,1.04993608,2065.5,2064.8,0.99033202]
[1773321190784,1.04993608,2065.5,2064.8,0.99517076]
[1773321194590,10.20793608,2065.5,2064.8,0.99517076]
[1773321195697,10.20793608,2065.5,2064.8,1.23786076]
[1773321196292,10.20793608,2065.5,2064.8,1.47997076]
[1773321196590,1.04993608,2065.5,2064.9,1.23564202]
[1773321196791,0.00452414,2065.6,2064.9,2.53515125]
[1773321196992,1.04993608,2066.0,2065.3,1.23774202]
[1773321197194,1.04993608,2065.9,2065.3,1.23774202]
[1773321197892,1.05499148,2065.9,2065.3,1.23774202]
[1773321198191,1.05499148,2065.9,2065.3,0.99033202]
[1773321198589,1.05499148,2065.9,2065.1,1.30174923]
[1773321198590,1.05499148,2065.9,2065.1,0.99033202]
[1773321198788,1.04993608,2065.8,2065.1,0.99033202]
[1773321199390,1.04993608,2065.8,2065.0,0.99033202]
[1773321212504,0.98971277,2065.6,2065.0,0.99033202]
[1773321219605,0.98971277,2065.5,2065.0,0.99033202]
[1773321221609,0.98971277,2065.5,2064.8,0.99406536]
[1773321221808,0.98971277,2065.4,2064.8,0.00483874]
[1773321222004,0.98971277,2065.3,2064.8,0.00483874]
[1773321222806,0.98971277,2065.1,2064.8,0.00483874]
[1773321223110,0.98971277,2065.1,2064.7,0.98922662]
[1773321223405,0.98971277,2065.1,2064.5,0.98922662]
[1773321223910,0.98971277,2065.1,2064.5,0.99347328]
[1773321225303,1.00725776,2065.5,2064.9,1.03141919]
[1773321225503,10.20325776,2065.5,2064.9,1.03141919]
[1773321225814,1.00725776,2065.4,2064.9,1.03141919]
[1773321233121,9.196,2065.5,2064.9,1.03141919]
[1773321233320,10.14915567,2065.5,2064.9,1.03141919]
[1773321235423,10.18715567,2065.4,2064.9,1.03141919]
[1773321236221,0.95315567,2065.8,2064.9,1.03141919]
[1773321236426,10.19115567,2065.7,2065.0,0.95711813]
[1773321236622,0.95315567,2065.6,2065.0,0.95711813]
[1773321240029,0.95315567,2065.6,2064.8,0.95711813]
[1773321240230,0.95315567,2065.5,2064.8,0.95711813]
[1773321240829,0.95315567,2065.4,2064.7,0.95711813]
[1773321241025,0.95315567,2065.2,2064.7,0.95711813]
[1773321241228,0.95315567,2065.2,2064.5,0.96136479]
[1773321243030,0.95315567,2065.2,2064.6,0.95711813]
[1773321243232,9.263,2065.2,2064.8,0.95711813]
[1773321243431,0.95315567,2065.4,2064.8,0.95711813]
[1773321243732,10.21715567,2065.5,2065.0,0.95711813]
[1773321244030,0.95315567,2065.4,2065.0,0.95711813]
[1773321247841,0.95315567,2065.4,2064.9,2.25928997]
[1773321248239,0.95315567,2065.4,2065.0,0.95711813]
[1773321249339,0.95315567,2065.4,2064.9,2.25928997]
[1773321249643,0.95315567,2065.4,2065.0,0.95711813]
[1773321250338,0.95315567,2065.4,2064.9,0.95711813]
[1773321251239,0.95315567,2065.3,2064.9,0.95711813]
[1773321252739,10.24615567,2065.4,2064.9,0.95711813]
[1773321253241,0.95315567,2065.3,2064.9,0.95711813]
[1773321253438,10.24615567,2065.4,2064.9,0.95711813]
[1773321253632,0.95315567,2065.4,2064.9,0.95711813]
[1773321253833,10.25715567,2065.6,2065.2,0.95711813]
[1773321258938,0.95315567,2065.5,2065.2,0.95711813]
[1773321259536,0.95315567,2065.5,2064.8,8.5244757]
[1773321259744,0.95315567,2065.5,2065.0,0.95711813]
[1773321260241,10.27621464,2065.6,2065.0,0.95711813]
[1773321260946,0.97221464,2065.5,2065.0,0.95711813]
[1773321261838,0.97221464,2065.8,2065.3,1.30217184]
[1773321262039,0.0050554,2065.9,2065.3,1.30217184]
[1773321262040,0.97727004,2065.9,2065.4,0.99496745]
[1773321262345,10.31221464,2066.0,2065.4,0.99496745]
[1773321263041,0.97221464,2065.9,2065.4,0.99496745]
[1773321263242,0.97678013,2065.9,2065.4,0.99496745]
[1773321263443,0.97678013,2065.9,2065.3,2.29713929]
[1773321263947,0.97678013,2065.9,2065.4,0.99496745]
[1773321266642,0.97678013,2065.9,2065.2,0.99496745]
[1773321266949,0.97221464,2065.7,2065.0,0.99496745]
[1773321267152,0.97221464,2065.5,2065.0,0.99496745]
[1773321267451,10.33321464,2065.6,2065.0,0.99496745]
[1773321267838,0.97221464,2065.5,2065.0,0.99496745]
[1773321273753,0.97221464,2065.5,2064.7,8.86952941]
[1773321273953,0.97221464,2065.5,2064.8,0.99496745]
[1773321276960,0.97221464,2065.3,2064.7,0.99496745]
[1773321277654,10.37321464,2065.3,2064.8,0.99496745]
[1773321277858,0.97221464,2065.5,2065.0,0.99496745]
[1773321282161,9.402,2065.6,2065.4,0.99496745]
[1773321283657,0.97221464,2065.8,2065.4,0.99496745]
[1773321283860,0.97221464,2065.7,2065.4,0.99496745]
[1773321284457,0.95238366,2065.6,2065.0,1.01044694]
[1773321284659,0.95238366,2065.0,2064.6,1.01044694]
[1773321284957,10.37838366,2065.2,2064.6,1.01044694]
[1773321285158,10.38038366,2065.2,2064.8,1.01044694]
[1773321285960,0.95238366,2065.1,2064.8,1.01044694]
[1773321287056,0.95238366,2065.2,2064.8,1.01044694]
[1773321287262,0.95238366,2065.4,2064.8,1.01044694]
[1773321287462,0.95238366,2065.4,2065.0,1.01044694]
[1773321288060,10.39038366,2065.5,2065.0,1.01044694]
[1773321288261,0.95238366,2065.4,2065.0,1.01044694]
[1773321290162,0.94079969,2065.8,2065.2,0.99173408]
[1773321290461,10.39479969,2065.7,2065.2,0.99173408]
[1773321290663,0.94079969,2065.6,2065.1,0.99173408]
[1773321290860,0.94079969,2065.6,2064.9,0.99173408]
[1773321291666,0.94079969,2065.2,2064.7,0.99173408]
[1773321293067,0.94079969,2065.2,2064.6,1.30217184]
[1773321293068,10.40679969,2065.3,2064.9,0.99173408]
[1773321293270,0.94079969,2065.3,2064.9,0.99173408]
[1773321294470,0.94079969,2065.3,2064.8,0.99173408]
[1773321295369,0.94079969,2065.2,2064.7,0.99173408]
[1773321295766,10.40779969,2065.5,2065.1,0.99173408]
[1773321296160,9.467,2065.5,2065.1,0.99173408]
[1773321296366,0.94079969,2065.4,2064.9,0.99173408]
[1773321296764,0.94079969,2065.2,2064.7,0.99173408]
[1773321297370,0.94079969,2065.2,2064.8,0.99173408]
[1773321299173,0.94079969,2065.2,2064.7,2.29390592]
[1773321299370,0.94079969,2065.2,2064.8,0.99173408]
[1773321301466,0.94079969,2065.4,2064.9,0.99173408]
[1773321301672,0.94079969,2065.7,2065.3,0.99173408]
[1773321301872,10.45879969,2065.7,2065.3,0.99173408]
[1773321302069,0.94079969,2065.6,2065.3,0.99173408]
[1773321302664,0.94079969,2065.7,2065.3,0.99173408]
[1773321302871,0.94536518,2065.9,2065.5,0.99173408]
[1773321303271,0.94536518,2065.9,2065.3,0.99173408]
[1773321303272,0.94079969,2065.8,2065.3,0.99173408]
[1773321307473,0.94079969,2065.7,2064.9,8.83609544]
[1773321307670,0.94079969,2065.7,2065.0,0.99173408]
[1773321313785,0.94079969,2065.5,2064.8,0.99173408]
[1773321313985,0.94079969,2065.3,2064.8,0.99173408]
[1773321315387,0.94079969,2065.3,2064.6,0.99173408]
[1773321315785,10.86091531,2065.4,2064.6,0.99173408]
[1773321315786,0.94079969,2065.1,2064.6,0.99173408]
[1773321320491,0.94079969,2065.1,2064.5,0.93969029]
[1773321328595,0.94079969,2065.1,2064.5,0.93463489]
[1773321328996,0.94079969,2065.1,2064.3,0.93544363]
[1773321329495,0.98097021,2064.9,2064.3,0.0055458]
[1773321329898,0.98097021,2064.8,2064.3,0.0055458]
[1773321330797,0.98097021,2064.8,2064.3,0.94098943]
[1773321332902,0.98097021,2064.8,2064.1,0.93544363]
[1773321333402,0.98097021,2064.7,2064.1,0.93544363]
[1773321333598,0.98097021,2064.5,2063.9,0.93544363]
[1773321333803,0.98097021,2064.5,2063.9,0.93944711]
[1773321335206,1.22644021,2064.4,2063.9,0.93944711]
[1773321335407,1.22608021,2064.3,2063.9,0.93944711]
[1773321335706,0.98097021,2064.3,2063.9,0.93944711]
[1773321337106,0.98097021,2064.3,2063.6,0.24225]
[1773321337107,0.98097021,2064.2,2063.6,0.93544363]
[1773321338198,0.98097021,2064.2,2063.6,0.00409775]
[1773321338403,0.98097021,2063.8,2062.9,0.93544363]
[1773321338908,0.98097021,2063.7,2062.9,0.93544363]
[1773321339304,0.98097021,2063.7,2062.9,0.93909253]
[1773321343312,0.98097021,2063.7,2063.0,0.93544363]
[1773321344807,0.98097021,2063.7,2062.9,0.0036489]
[1773321345013,0.9906399,2063.5,2062.5,0.95678091]
[1773321345411,0.9906399,2063.3,2061.9,0.95678091]
[1773321345712,0.9906399,2063.1,2061.9,0.95678091]
[1773321345910,0.9906399,2063.1,2061.9,0.96214052]
[1773321347713,0.9906399,2063.1,2061.9,0.00535961]
[1773321348013,0.9906399,2062.7,2061.6,0.95678091]
[1773321348203,0.9906399,2062.5,2061.6,0.95678091]
[1773321348404,0.9906399,2062.5,2061.4,0.76935383]
[1773321349116,0.9906399,2061.9,2060.8,0.95678091]
[1773321349307,0.9906399,2061.9,2060.1,7.611]
[1773321349308,0.9906399,2061.4,2060.1,0.95678091]
[1773321349505,0.9906399,2061.4,2060.1,1.19944091]
[1773321349705,0.9906399,2061.2,2060.2,0.95678091]
[1773321350112,0.9906399,2061.2,2060.2,0.96208071]
[1773321352303,0.9906399,2061.2,2060.2,0.0052998]
[1773321352513,0.9906399,2061.2,2060.2,0.99261709]
[1773321353218,1.00514955,2061.1,2060.2,0.99261709]
[1773321354715,1.00514955,2061.1,2060.2,0.0052998]
[1773321355111,6.97255955,2060.9,2059.3,0.98731729]
[1773321355315,1.00514955,2059.9,2058.5,0.98731729]
[1773321355516,6.97464955,2060.2,2058.5,0.98731729]
[1773321355517,1.00514955,2059.7,2058.5,0.98731729]
[1773321356016,1.00514955,2059.6,2058.5,0.98731729]
[1773321356214,1.01007355,2059.6,2058.5,0.99197059]
[1773321357018,1.00514955,2060.2,2058.9,0.98731729]
[1773321357313,1.00514955,2060.4,2059.3,0.98731729]
[1773321357611,1.00514955,2060.6,2059.5,0.98731729]
[1773321358819,1.00883155,2060.6,2059.7,0.98731729]
[1773321359013,0.003682,2060.6,2059.7,1.23016729]
[1773321359209,0.003682,2060.6,2059.7,0.98731729]
[1773321359410,1.00883155,2060.6,2059.7,0.98731729]
[1773321359819,1.00514955,2060.5,2059.1,0.98731729]
[1773321360016,1.00514955,2060.4,2059.1,0.98731729]
[1773321360312,1.00514955,2060.4,2059.3,0.98731729]
[1773321361115,0.24264,2060.3,2058.6,0.4797653]
[1773321361312,1.00514955,2060.0,2058.7,0.98731729]
[1773321362216,1.00514955,2060.2,2059.1,0.98731729]
[1773321362520,1.00514955,2060.4,2059.3,0.98731729]
[1773321364714,1.00883155,2060.6,2059.3,0.98731729]
[1773321364910,1.00883155,2060.6,2059.5,0.98731729]
[1773321365125,0.003682,2060.6,2059.9,0.98731729]
[1773321366022,1.00514955,2061.0,2059.9,0.98731729]
[1773321366322,1.00514955,2061.0,2060.1,0.98731729]
[1773321366723,1.00514955,2061.5,2060.1,0.98731729]
[1773321367113,1.00929921,2061.5,2060.1,0.98731729]
[1773321367317,1.00929921,2061.5,2060.3,0.98731729]
[1773321367719,1.00929921,2061.5,2060.4,0.98731729]
[1773321368519,1.00929921,2061.5,2060.7,0.98731729]
[1773321368714,0.00414966,2061.5,2060.7,0.98731729]
[1773321369121,1.00929921,2061.5,2060.7,0.98731729]
[1773321370322,0.00414966,2061.5,2060.7,0.98731729]
[1773321371025,1.00929921,2061.5,2060.7,0.98731729]
[1773321371226,1.00929921,2061.5,2060.4,0.98731729]
[1773321372418,1.00929921,2061.5,2060.4,1.22993729]
[1773321372623,1.00929921,2061.5,2060.7,0.98731729]
[1773321374727,1.00514955,2061.9,2061.0,0.98731729]
[1773321375028,1.00514955,2061.9,2061.0,1.22987729]
[1773321375428,1.00514955,2061.9,2060.8,0.98731729]
[1773321376226,1.00971789,2061.9,2060.8,0.98731729]
[1773321376624,1.00514955,2061.7,2060.6,0.98731729]
[1773321380236,1.00514955,2061.7,2060.7,0.98731729]
[1773321380534,1.00514955,2061.7,2060.9,0.91132314]
[1773321380731,1.00514955,2061.7,2061.1,0.91132314]
[1773321381528,0.93958209,2061.9,2061.1,0.91132314]
[1773321382842,0.93958209,2061.9,2060.6,0.91132314]
[1773321383244,0.93501375,2061.7,2060.6,0.91132314]
[1773321383944,0.93501375,2061.5,2060.6,0.91132314]
[1773321386634,0.93501375,2061.5,2060.8,0.91132314]
[1773321386839,0.93501375,2061.5,2060.3,0.91132314]
[1773321387642,0.93501375,2061.3,2060.3,0.91132314]
[1773321388234,0.93501375,2061.1,2060.3,0.91132314]
[1773321388435,0.93501375,2061.0,2060.1,0.91542897]
[1773321388636,0.93501375,2060.8,2060.1,0.00410583]
[1773321388835,0.93501375,2060.7,2059.5,0.91132314]
[1773321389650,0.93501375,2060.5,2059.5,0.91132314]
[1773321390048,0.93501375,2060.5,2059.7,0.91132314]
[1773321390246,0.93501375,2060.8,2059.7,0.91132314]
[1773321396254,0.93501375,2060.6,2059.7,0.91132314]
[1773321397950,0.93501375,2060.6,2059.5,0.91707578]
[1773321398850,0.93501375,2060.6,2059.7,0.91132314]
[1773321399949,0.93501375,2060.8,2059.7,0.91132314]
[1773321403952,0.93501375,2060.6,2059.7,0.91132314]
[1773321404452,0.95408597,2060.2,2059.5,0.00575264]
[1773321404660,0.95408597,2059.9,2059.1,0.96805172]
[1773321404953,0.95408597,2059.9,2058.7,0.96805172]
[1773321405357,0.95408597,2059.8,2058.9,0.96805172]
[1773321405549,0.00352169,2059.8,2059.1,0.96805172]
[1773321406250,0.95408597,2060.5,2059.1,0.96805172]
[1773321406456,0.95408597,2060.3,2059.1,0.96805172]
[1773321407254,0.95798962,2060.3,2059.1,0.96805172]
[1773321407455,10.59498962,2060.3,2059.3,0.96805172]
[1773321407752,0.95798962,2060.3,2059.3,0.96805172]
[1773321407950,0.00390365,2060.3,2059.5,0.96805172]
[1773321408646,0.95798962,2060.3,2059.5,0.96805172]
[1773321411861,0.9365917,2060.2,2059.0,0.93117139]
[1773321412062,0.9365917,2059.9,2058.9,0.93680931]
[1773321412957,0.9365917,2059.7,2058.9,0.93680931]
[1773321414855,0.9365917,2059.7,2058.9,0.00563792]
[1773321415859,0.9365917,2059.7,2058.4,0.24286]
[1773321415860,0.9365917,2059.3,2058.4,0.93117139]
[1773321416455,0.9365917,2059.3,2058.0,0.93117139]
[1773321416652,0.9365917,2059.0,2058.0,0.93117139]
[1773321416857,0.9365917,2058.8,2058.0,0.93548443]
[1773321417058,0.9365917,2059.3,2058.4,0.93117139]
[1773321417259,0.94271542,2059.3,2058.4,0.93117139]
[1773321417560,0.94271542,2059.3,2058.2,0.93117139]
[1773321417757,0.9365917,2059.1,2058.2,0.93117139]
[1773321419762,0.94271542,2059.3,2058.3,0.93117139]
[1773321420859,0.82071542,2059.3,2058.5,0.93117139]
[1773321421260,0.9365917,2059.6,2058.5,0.93117139]
[1773321421857,0.94170771,2059.6,2058.5,0.93117139]
[1773321422964,0.9365917,2059.4,2058.5,0.93117139]
[1773321426763,0.00511601,2059.6,2059.1,0.93117139]
[1773321427067,0.9365917,2060.0,2059.3,0.93117139]
[1773321427866,0.00610128,2060.0,2059.3,0.93117139]
[1773321428275,0.9365917,2060.3,2059.3,0.93117139]
[1773321428458,0.9365917,2060.7,2059.5,0.93117139]
[1773321428968,0.9365917,2060.5,2059.5,0.93117139]
[1773321429366,0.9411095,2060.5,2059.5,0.93712742]
[1773321429564,0.9365917,2060.2,2059.5,0.00595603]
[1773321429767,0.9365917,2060.2,2059.5,0.93712742]
[1773321430268,0.9365917,2060.4,2059.5,0.93712742]
[1773321431169,0.0045178,2060.5,2059.7,0.93117139]
[1773321431566,0.0045178,2060.5,2059.7,1.17420139]
[1773321431869,0.0045178,2060.5,2059.9,1.17660139]
[1773321432371,0.9411095,2060.5,2060.0,1.17507139]
[1773321432568,0.9411095,2060.5,2060.1,0.93117139]
[1773321432972,0.9411095,2060.5,2059.7,0.93117139]
[1773321434273,0.9411095,2060.5,2059.5,0.93712742]
[1773321435573,0.9365917,2060.4,2059.5,0.00595603]
[1773321436176,0.9365917,2060.2,2059.5,0.00595603]
[1773321436375,10.5705917,2060.2,2059.5,0.00595603]
[1773321436669,0.9365917,2060.1,2059.5,0.00595603]
[1773321437471,0.9365917,2059.9,2058.7,0.93117139]
[1773321438476,0.9365917,2059.9,2058.7,0.93659704]
[1773321438877,0.9365917,2059.9,2058.8,0.93117139]
[1773321439977,0.9365917,2060.2,2059.0,0.93117139]
[1773321440677,0.9365917,2060.2,2059.2,0.92030723]
[1773321442079,0.94921994,2060.1,2059.2,0.92030723]
[1773321442679,0.94921994,2060.1,2058.8,0.92030723]
[1773321442874,0.94921994,2059.8,2058.8,0.92030723]
[1773321446980,0.94921994,2060.0,2059.0,0.92030723]
[1773321448979,0.94921994,2059.9,2059.0,0.92030723]
[1773321451079,0.94921994,2059.8,2059.0,0.92030723]
[1773321451483,0.94921994,2059.7,2059.0,0.92030723]
[1773321451684,0.94921994,2059.7,2058.8,0.92030723]
[1773321454983,0.94921994,2059.5,2058.7,0.00542565]
[1773321455187,0.94921994,2059.5,2058.8,0.92030723]
[1773321456277,0.94921994,2059.5,2058.7,0.00542565]
[1773321456479,0.94921994,2059.5,2058.7,0.92573288]
[1773321457186,0.94921994,2059.4,2058.7,0.92573288]
[1773321458789,0.94921994,2059.3,2058.7,0.92573288]
[1773321459489,0.94921994,2059.3,2058.7,0.00030964]
[1773321459683,0.94921994,2059.1,2058.4,0.92030723]
[1773321460188,0.94921994,2058.9,2058.4,0.92030723]
[1773321460889,0.9545084,2058.9,2058.4,0.92504791]
[1773321462191,10.56621994,2059.2,2058.4,0.92504791]
[1773321462490,0.94921994,2059.1,2058.4,0.92504791]
[1773321463192,0.95388658,2059.1,2058.4,0.92504791]
[1773321463692,0.00466664,2059.1,2058.4,0.92504791]
[1773321464691,0.90765531,2059.1,2058.4,0.92192509]
[1773321464892,0.90765531,2059.1,2058.5,0.91718441]
[1773321465086,0.00466664,2059.1,2058.5,0.91718441]
[1773321466595,0.00466664,2059.1,2058.5,1.16185441]
[1773321466796,0.00466664,2059.1,2058.6,1.16183441]
[1773321466984,0.90298867,2059.4,2058.9,0.91718441]
[1773321467194,0.90298867,2059.4,2059.0,0.91718441]
[1773321467989,0.90639625,2059.4,2059.0,0.91718441]
[1773321468796,0.90639625,2059.4,2058.5,0.91718441]
[1773321468990,0.90298867,2059.3,2058.5,0.91718441]
[1773321472595,0.90298867,2059.3,2058.4,0.00474068]
[1773321472791,0.96826207,2059.1,2058.4,0.00474068]
[1773321472987,0.96826207,2059.0,2058.4,0.98893383]
[1773321473187,0.96826207,2058.9,2058.4,0.98893383]
[1773321473388,10.58126207,2058.9,2058.4,7.405e-05]
[1773321473594,0.96826207,2058.8,2058.2,0.98419315]
[1773321474598,0.96826207,2058.8,2058.2,0.98791807]
[1773321475193,0.96826207,2058.7,2058.2,0.98791807]
[1773321475790,0.96826207,2059.0,2058.2,0.98791807]
[1773321478596,0.96826207,2058.9,2058.2,0.98791807]
[1773321480303,0.96826207,2058.8,2058.2,0.98791807]
[1773321481797,10.58826207,2058.9,2058.2,0.98791807]
[1773321481998,9.62,2058.9,2058.2,0.98791807]
[1773321482303,0.96826207,2059.2,2058.3,0.98419315]
[1773321482499,0.96826207,2059.3,2058.3,0.98419315]
[1773321483000,6.95841544,2059.3,2058.3,0.98419315]
[1773321483400,5.99015337,2059.3,2058.3,0.98419315]
[1773321483606,0.00340758,2059.4,2058.3,0.98419315]
[1773321483802,0.97166965,2059.4,2058.5,0.98419315]
[1773321485103,16.5885503,2059.8,2058.7,0.98419315]
[1773321485299,6.9625503,2059.7,2058.7,0.98419315]
[1773321485605,0.96826207,2059.8,2058.9,0.98419315]
[1773321485802,0.96826207,2059.7,2058.9,0.98419315]
[1773321486003,0.96826207,2059.9,2058.9,0.98419315]
[1773321486201,6.96923825,2059.9,2058.9,0.98419315]
[1773321486906,0.96826207,2059.8,2058.9,0.98419315]
[1773321487909,0.00541379,2059.9,2058.9,0.98419315]
[1773321488112,0.97367586,2059.9,2058.9,0.98419315]
[1773321490711,0.00541379,2059.9,2059.0,1.22698315]
[1773321491711,0.00541379,2059.9,2059.0,1.46978315]
[1773321492012,0.00541379,2059.9,2059.2,1.23776315]
[1773321492213,0.00541379,2059.9,2059.3,1.23802315]
[1773321492413,0.00541379,2059.9,2059.4,1.23867315]
[1773321492613,0.00541379,2059.9,2059.5,1.23911315]
[1773321492913,0.00541379,2059.9,2059.6,1.23057315]
[1773321493114,0.00050083,2059.9,2059.7,0.98419315]
[1773321493516,0.00050083,2059.9,2059.8,0.98419315]
[1773321493713,0.96826207,2060.3,2059.9,0.98419315]
[1773321493910,0.96826207,2060.6,2059.9,0.98419315]
[1773321494216,0.96826207,2060.5,2059.9,0.98419315]
[1773321494814,0.97347902,2060.5,2059.9,0.98886451]
[1773321495218,0.97347902,2060.5,2059.9,0.00467136]
[1773321495412,0.97347902,2060.5,2059.9,0.98886451]
[1773321495815,0.00521695,2060.5,2059.9,0.98886451]
[1773321496018,0.96826207,2060.9,2059.9,0.98886451]
[1773321497019,0.9743841,2060.9,2059.9,0.98886451]
[1773321499722,0.96826207,2060.8,2059.9,0.98886451]
[1773321499914,0.96826207,2060.6,2059.9,0.98886451]
[1773321500618,0.00612203,2060.9,2060.0,0.24268]
[1773321500824,0.95109341,2060.9,2060.1,0.95731813]
[1773321504528,0.00612203,2060.9,2060.1,0.95731813]
[1773321505624,0.94497138,2061.3,2060.3,0.95731813]
[1773321505825,0.94497138,2061.5,2060.5,0.95731813]
[1773321506720,0.95094805,2061.5,2060.5,0.95731813]
[1773321511023,0.94497138,2061.2,2060.5,0.95731813]
[1773321511430,0.94497138,2061.2,2060.0,0.95731813]
[1773321511629,2.12211937,2060.3,2059.5,0.95731813]
[1773321511826,3.06709075,2060.0,2059.0,0.95731813]
[1773321512231,0.94497138,2060.0,2059.0,0.95731813]
[1773321512834,0.94984945,2060.0,2059.0,0.96163232]
[1773321513836,0.94984945,2060.0,2059.2,0.95731813]
[1773321514033,0.94497138,2060.2,2059.2,0.95731813]
[1773321514234,0.94497138,2060.2,2059.4,0.95731813]
[1773321515135,0.95030419,2060.2,2059.4,0.95731813]
[1773321517637,0.94497138,2059.9,2059.0,0.96163232]
[1773321517839,0.94497138,2059.6,2059.0,0.96163232]
[1773321518333,0.94497138,2059.6,2059.0,0.00431419]
[1773321518533,0.94497138,2059.6,2058.7,0.95731813]
[1773321519440,0.94497138,2059.6,2058.7,0.96222154]
[1773321524133,0.94497138,2059.6,2058.7,0.00490341]
[1773321525038,0.94497138,2059.6,2058.7,0.96638707]
[1773321526543,0.8940064,2059.3,2058.7,0.00490341]
[1773321527440,0.8940064,2059.3,2058.4,0.96148366]
[1773321528339,0.8940064,2059.3,2058.4,0.96763948]
[1773321535348,0.8940064,2059.3,2058.6,0.92886944]
[1773321537452,0.91642149,2059.7,2058.7,0.92886944]
[1773321539652,0.91642149,2059.7,2058.9,0.92886944]
[1773321541151,0.91642149,2060.1,2059.1,0.92886944]
[1773321541454,0.91642149,2060.1,2059.3,0.92886944]
[1773321541850,0.9217543,2060.2,2059.3,0.92886944]
[1773321542251,0.00533281,2060.2,2059.5,0.92886944]
[1773321542447,0.91642149,2060.5,2059.5,0.92886944]
[1773321542748,0.91642149,2060.7,2059.7,0.92886944]
[1773321543548,0.92019891,2060.7,2059.7,0.92886944]
[1773321544856,0.91642149,2061.1,2060.1,0.92886944]
[1773321545647,0.91642149,2061.7,2060.6,0.92886944]
[1773321545851,0.92055034,2061.7,2060.7,0.92886944]
[1773321546045,0.91642149,2061.6,2060.7,0.92886944]
[1773321547450,0.91642149,2061.6,2060.6,0.0044748]
[1773321547651,0.91642149,2061.6,2060.6,0.93334424]
[1773321548153,0.91642149,2061.3,2060.6,0.0044748]
[1773321548946,0.91642149,2061.2,2060.6,0.0044748]
[1773321549151,0.91642149,2061.0,2060.0,0.92886944]
[1773321550259,0.91642149,2061.0,2060.0,0.93287871]
[1773321552655,0.91642149,2060.9,2060.0,0.00400927]
[1773321553250,0.91642149,2060.9,2059.6,0.92886944]
[1773321553460,0.91642149,2060.7,2059.6,0.92886944]
[1773321554266,0.91642149,2060.7,2059.6,0.93287398]
[1773321554462,9.502,2060.6,2059.6,0.93287398]
[1773321554666,0.91642149,2060.5,2059.6,0.93287398]
[1773321558466,0.91642149,2060.5,2059.6,0.00400454]
[1773321558870,0.91642149,2060.5,2059.6,0.93287398]
[1773321560873,0.91642149,2060.5,2059.7,0.92814672]
[1773321562072,0.92351106,2060.7,2059.9,0.92814672]
[1773321566375,0.92351106,2060.7,2059.8,0.2427]
[1773321566575,0.92351106,2060.7,2059.7,0.92814672]
[1773321571982,0.92351106,2060.6,2059.7,0.92814672]
[1773321573379,0.92351106,2061.0,2059.9,0.92814672]
[1773321573581,0.92351106,2061.0,2060.2,0.24265]
[1773321573779,0.92351106,2061.2,2060.3,0.92814672]
[1773321574986,0.92351106,2061.4,2060.5,0.92814672]
[1773321575586,0.00412885,2061.7,2060.5,0.92814672]
[1773321575783,0.92351106,2061.6,2060.5,0.92814672]
[1773321577988,0.92351106,2061.5,2060.5,0.92814672]
[1773321583887,0.92351106,2061.5,2060.7,0.92559774]
[1773321584590,0.9248701,2061.7,2060.9,0.92559774]
[1773321586389,5.89180991,2062.1,2061.1,0.92559774]
[1773321586390,0.92074125,2062.0,2061.1,0.92559774]
[1773321586690,0.92074125,2062.2,2061.3,0.92559774]
[1773321587482,0.92468881,2062.2,2061.3,0.92980211]
[1773321590900,0.00394756,2062.2,2061.5,0.95909147]
[1773321591393,0.93316183,2062.2,2061.3,0.00420437]
[1773321591598,0.93316183,2062.2,2061.3,0.96329584]
[1773321592195,0.93316183,2062.2,2061.3,0.00420437]
[1773321592792,0.92921427,2062.0,2060.8,0.95909147]
[1773321593201,0.92921427,2062.0,2060.9,0.95909147]
[1773321593492,0.00394756,2062.2,2060.8,0.24258]
[1773321593493,0.00394756,2062.2,2061.1,0.95909147]
[1773321593695,0.92921427,2062.5,2061.4,0.95909147]
[1773321594594,0.93485229,2062.5,2061.4,0.96344043]
[1773321595203,0.93485229,2062.5,2061.4,0.00434896]
[1773321595596,6.8109168,2062.5,2061.4,0.00434896]
[1773321595791,1.17161427,2062.4,2061.4,0.00434896]
[1773321595992,0.92921427,2062.3,2061.4,0.00434896]
[1773321596901,0.92921427,2061.7,2060.7,0.95909147]
[1773321597199,0.92921427,2061.5,2060.3,0.24263]
[1773321597394,0.92921427,2061.3,2060.4,0.95909147]
[1773321597999,0.92921427,2061.3,2060.4,0.96313093]